fUSD/lending_fUSD_20250522
["ID","MTS","AMOUNT","RATE_DAILY","PERIOD"]
[362006737,1747933876974,-420.0,0.00033972,5]
[362006738,1747933876984,-3607.16,0.00033972,5]
[362006739,1747933876993,-981.4,0.00033972,5]
[362006740,1747933877003,-1224.05,0.00033972,5]
[362006741,1747933877013,-420.0,0.00033972,5]
[362006742,1747933877023,-420.0,0.00033972,5]
[362006743,1747933877032,-420.0,0.00033972,5]
[362006744,1747933877042,-769.81,0.00033972,5]
[362006745,1747933877051,-420.0,0.00033972,5]
[362006746,1747933877061,-420.0,0.00033972,5]
[362006747,1747933877071,-537.06,0.00033972,5]
[362006748,1747933877081,-4553.04,0.00033972,5]
[362006749,1747933877091,-420.0,0.00033972,5]
[362006750,1747933877100,-1136.33,0.00033972,5]
[362006751,1747933877110,-602.44,0.00033972,5]
[362006752,1747933877120,-420.0,0.00033972,5]
[362006753,1747933877130,-682.83,0.00033972,5]
[362006754,1747933877140,-545.53,0.00033972,5]
[362006755,1747933877149,-617.12,0.00033972,5]
[362006756,1747933877159,-420.0,0.00033972,5]
[362006757,1747933877168,-578.41,0.00033972,5]
[362006758,1747933877178,-20351.89,0.00033972,5]
[362006759,1747933877187,-476.43,0.00033972,5]
[362006760,1747933877197,-477.04,0.00033972,5]
[362006761,1747933877206,-420.0,0.00033972,5]
[362006762,1747933877215,-490.47,0.00033972,5]
[362006763,1747933877225,-420.0,0.00033972,5]
[362006764,1747933877234,-420.0,0.00033972,5]
[362006765,1747933877244,-420.0,0.00033972,5]
[362006766,1747933877253,-420.0,0.00033972,5]
[362006767,1747933877263,-811.02,0.00033972,5]
[362006768,1747933877272,-1689.12,0.00033972,5]
[362006769,1747933877281,-1378.26,0.00033972,5]
[362006770,1747933877291,-505.25,0.00033972,5]
[362006771,1747933877300,-898.43,0.00033972,5]
[362006772,1747933877310,-420.0,0.00033972,5]
[362006773,1747933877320,-420.0,0.00033972,5]
[362006774,1747933877329,-997.18,0.00033972,5]
[362006775,1747933877341,-420.0,0.00033972,5]
[362006776,1747933877350,-660.15,0.00033972,5]
[362006777,1747933877360,-420.0,0.00033972,5]
[362006778,1747933877369,-703.8,0.00033972,5]
[362006779,1747933877379,-420.0,0.00033972,5]
[362006780,1747933877389,-550.31,0.00033972,5]
[362006781,1747933877398,-449.16,0.00033972,5]
[362006782,1747933877408,-420.0,0.00033972,5]
[362006783,1747933877417,-550.58,0.00033972,5]
[362006784,1747933877427,-472.36,0.00033972,5]
[362006785,1747933877437,-822.44,0.00033972,5]
[362006786,1747933877446,-716.72,0.00033972,5]
[362006787,1747933877456,-420.0,0.00033972,5]
[362006788,1747933877466,-420.0,0.00033972,5]
[362006789,1747933877476,-420.0,0.00033972,5]
[362006790,1747933877485,-1008.83,0.00033972,5]
[362006791,1747933877496,-867.21,0.00033972,5]
[362006792,1747933877506,-469.62,0.00033972,5]
[362006793,1747933877516,-745.26,0.00033972,5]
[362006794,1747933877525,-652.81,0.00033972,5]
[362006795,1747933877535,-420.0,0.00033972,5]
[362006796,1747933877544,-420.0,0.00033972,5]
[362006797,1747933877554,-420.0,0.00033972,5]
[362006798,1747933877563,-420.0,0.00033972,5]
[362006799,1747933877573,-420.0,0.00033972,5]
[362006800,1747933877582,-441.89,0.00033972,5]
[362006801,1747933877592,-420.0,0.00033972,5]
[362006802,1747933877602,-420.0,0.00033972,5]
[362006803,1747933877613,-1035.38,0.00033972,5]
[362006804,1747933877622,-420.0,0.00033972,5]
[362006805,1747933877631,-420.0,0.00033972,5]
[362006806,1747933877641,-420.0,0.00033972,5]
[362006807,1747933877651,-916.68,0.00033972,5]
[362006808,1747933877662,-1558.06,0.00033972,5]
[362006809,1747933877672,-420.0,0.00033972,5]
[362006810,1747933877683,-420.0,0.00033972,5]
[362006811,1747933877693,-420.0,0.00033972,5]
[362006812,1747933877704,-9657.78,0.00033972,5]
[362006813,1747933877714,-150.812497,0.00033972,5]
[362006814,1747933877723,-856.88,0.00033972,5]
[362006815,1747933877735,-420.0,0.00033972,5]
[362006816,1747933877751,-420.0,0.00033972,5]
[362006817,1747933877769,-420.0,0.00033972,5]
[362006818,1747933877780,-1492.64,0.00033972,2]
[362006819,1747933877790,-420.0,0.00033972,5]
[362006820,1747933877800,-224.53348141,0.00033972,5]
[362006821,1747933877811,-852.89,0.00033972,5]
[362006822,1747933877821,-989.21,0.00033972,5]
[362006823,1747933877831,-662.91,0.00033972,5]
[362006824,1747933877842,-420.0,0.00033972,5]
[362006825,1747933877852,-482.81,0.00033972,5]
[362006826,1747933877862,-712.38,0.00033972,5]
[362006827,1747933877872,-420.0,0.00033972,5]
[362006828,1747933877882,-852.65,0.00033972,5]
[362006829,1747933877891,-420.0,0.00033972,5]
[362006830,1747933877900,-689.38,0.00033972,5]
[362006831,1747933877910,-420.0,0.00033972,5]
[362006832,1747933877919,-944.19,0.00033972,5]
[362006833,1747933877928,-420.0,0.00033972,5]
[362006834,1747933877938,-763.73,0.00033972,5]
[362006835,1747933877947,-420.0,0.00033972,5]
[362006836,1747933877957,-420.0,0.00033972,5]
[362006837,1747933877967,-682.05,0.00033972,5]
[362006838,1747933877976,-508.79,0.00033972,5]
[362006839,1747933877986,-420.0,0.00033972,5]
[362006840,1747933877995,-1132.56,0.00033972,5]
[362006841,1747933878005,-420.0,0.00033972,5]
[362006842,1747933878014,-7060.32,0.00033972,2]
[362006843,1747933878024,-587.53,0.00033972,5]
[362006844,1747933878034,-420.0,0.00033972,5]
[362006845,1747933878044,-349.22112525,0.00033972,5]
[362006846,1747933878054,-420.0,0.00033972,5]
[362006847,1747933878064,-538.68,0.00033972,5]
[362006848,1747933878074,-1684.49,0.00033972,5]
[362006849,1747933878084,-2664.69,0.00033972,5]
[362006850,1747933878094,-472.67,0.00033972,5]
[362006851,1747933878104,-420.0,0.00033972,5]
[362006852,1747933878114,-1992.63,0.00033972,5]
[362006853,1747933878124,-420.0,0.00033972,5]
[362006854,1747933878134,-834.06,0.00033972,5]
[362006855,1747933878143,-760.49,0.00033972,5]
[362006856,1747933878153,-420.0,0.00033972,5]
[362006857,1747933878163,-695.29,0.00033972,5]
[362006858,1747933878172,-420.0,0.00033972,5]
[362006859,1747933878182,-487.94,0.00033972,5]
[362006860,1747933878191,-3002.7,0.00033972,5]
[362006861,1747933878201,-420.0,0.00033972,5]
[362006862,1747933878211,-714.9,0.00033972,5]
[362006863,1747933878220,-420.0,0.00033972,5]
[362006864,1747933878230,-420.0,0.00033972,5]
[362006865,1747933878239,-420.0,0.00033972,5]
[362006866,1747933878249,-420.0,0.00033972,5]
[362006867,1747933878258,-926.84,0.00033972,5]
[362006868,1747933878268,-420.0,0.00033972,5]
[362006869,1747933878278,-1535.61,0.00033972,5]
[362006870,1747933878287,-1008.31,0.00033972,5]
[362006871,1747933878297,-420.0,0.00033972,5]
[362006872,1747933878306,-790.41,0.00033972,5]
[362006873,1747933878316,-420.0,0.00033972,5]
[362006874,1747933878325,-420.0,0.00033972,5]
[362006875,1747933878335,-420.0,0.00033972,5]
[362006876,1747933878344,-420.0,0.00033972,5]
[362006877,1747933878353,-498.17,0.00033972,5]
[362006878,1747933878362,-420.0,0.00033972,5]
[362006879,1747933878372,-762.76,0.00033972,5]
[362006880,1747933878381,-803.17,0.00033972,5]
[362006881,1747933878391,-671.75,0.00033972,5]
[362006882,1747933878401,-496.74,0.00033972,5]
[362006883,1747933878411,-990.41,0.00033972,5]
[362006884,1747933878421,-420.0,0.00033972,5]
[362006885,1747933878431,-611.86,0.00033972,5]
[362006886,1747933878440,-603.63,0.00033972,5]
[362006887,1747933878449,-497.27,0.00033972,5]
[362006888,1747933878459,-420.0,0.00033972,5]
[362006889,1747933878469,-7038.0,0.00034,12]
[362006890,1747933878478,-300.0,0.00034,120]
[362006891,1747933878488,-976.96,0.00034,2]
[362006892,1747933878498,-1000.0,0.00034,8]
[362006893,1747933878509,-900.0,0.00034,35]
[362006894,1747933878518,-1000.0,0.00034,2]
[362006895,1747933878528,-190.5,0.00034,14]
[362006896,1747933878538,-166.66666666,0.00034,30]
[362006897,1747933878548,-200.0,0.00034073,120]
[362006898,1747933878558,-201.43962383,0.000341,30]
[362006899,1747933878567,-1900.0,0.00034119,7]
[362006900,1747933878577,-500.4004216,0.00034129,7]
[362006901,1747933878587,-398.35904497,0.00034137,15]
[362006902,1747933878596,-210.0,0.0003414,30]
[362006903,1747933878606,-152.25,0.00034141,2]
[362006904,1747933878615,-1900.0,0.0003419,7]
[362006905,1747933878625,-6974.67,0.000342,2]
[362006906,1747933878634,-2174.61,0.000342,2]
[362006907,1747933878643,-505.08267487,0.00034201,7]
[362006908,1747933878653,-1900.0,0.00034228,7]
[362006909,1747933878663,-155.95709372,0.00034244,7]
[362006910,1747933878672,-192.11473292,0.00034244,7]
[362006911,1747933878682,-500.0,0.00034245,5]
[362006912,1747933878692,-500.0,0.00034245,5]
[362006913,1747933878702,-420.0,0.00034246,14]
[362006914,1747933878711,-420.0,0.00034246,5]
[362006915,1747933878720,-420.0,0.00034246,5]
[362006916,1747933878730,-420.0,0.00034246,5]
[362006917,1747933878741,-420.0,0.00034246,5]
[362006918,1747933878757,-420.0,0.00034246,5]
[362006919,1747933878767,-617.84,0.00034246,5]
[362006920,1747933878776,-557.43,0.00034246,5]
[362006921,1747933878787,-420.0,0.00034246,5]
[362006922,1747933878796,-420.0,0.00034246,5]
[362006923,1747933878805,-433.93,0.00034246,5]
[362006924,1747933878816,-420.0,0.00034246,5]
[362006925,1747933878826,-468.52,0.00034246,5]
[362006926,1747933878835,-420.0,0.00034246,5]
[362006927,1747933878845,-420.0,0.00034246,5]
[362006928,1747933878855,-420.0,0.00034246,5]
[362006929,1747933878864,-420.0,0.00034246,5]
[362006930,1747933878873,-420.0,0.00034246,5]
[362006931,1747933878883,-420.0,0.00034246,5]
[362006932,1747933878892,-420.0,0.00034246,5]
[362006933,1747933878902,-327.69917267,0.00034246,5]
[362006934,1747933878911,-453.05,0.00034246,5]
[362006935,1747933878920,-420.0,0.00034246,5]
[362006936,1747933878928,-420.0,0.00034246,5]
[362006937,1747933878937,-457.43,0.00034246,5]
[362006938,1747933878945,-420.0,0.00034246,5]
[362006939,1747933878954,-550.44,0.00034246,5]
[362006940,1747933878962,-565.52635577,0.00034246,5]
[362006941,1747933878971,-420.0,0.00034246,5]
[362006942,1747933878979,-659.52,0.00034246,5]
[362006943,1747933878987,-420.0,0.00034246,5]
[362006944,1747933878997,-420.0,0.00034246,5]
[362006945,1747933879007,-420.0,0.00034246,5]
[362006946,1747933879017,-420.0,0.00034246,5]
[362006947,1747933879026,-420.0,0.00034246,5]
[362006948,1747933879036,-577.96,0.00034246,5]
[362006949,1747933879045,-463.1,0.00034246,5]
[362006950,1747933879055,-547.33,0.00034246,5]
[362006951,1747933879064,-420.0,0.00034246,5]
[362006952,1747933879074,-489.54030959,0.00034246,5]
[362006953,1747933879083,-420.0,0.00034246,5]
[362006954,1747933879094,-420.0,0.00034246,5]
[362006955,1747933879103,-463.0,0.00034246,5]
[362006956,1747933879113,-599.91,0.00034246,5]
[362006957,1747933879122,-420.0,0.00034246,5]
[362006958,1747933879131,-464.52,0.00034246,5]
[362006959,1747933879140,-486.25,0.00034246,5]
[362006960,1747933879149,-420.0,0.00034246,5]
[362006961,1747933879159,-697.31,0.00034246,5]
[362006962,1747933879168,-203.61407709,0.00034246,5]
[362006963,1747933879180,-420.0,0.00034246,5]
[362006964,1747933879189,-534.14597261,0.00034246,5]
[362006965,1747933879199,-420.0,0.00034246,5]
[362006966,1747933879208,-420.0,0.00034246,5]
[362006967,1747933879217,-420.0,0.00034246,5]
[362006968,1747933879227,-420.0,0.00034246,5]
[362006969,1747933879236,-420.0,0.00034246,5]
[362006970,1747933879333,-524.37422074,0.00034246,5]
[362006971,1747933879343,-420.0,0.00034246,5]
[362006972,1747933879352,-420.0,0.00034246,5]
[362006973,1747933879362,-420.0,0.00034246,5]
[362006974,1747933879372,-529.35,0.00034246,5]
[362006975,1747933879381,-420.0,0.00034246,5]
[362006976,1747933879391,-420.0,0.00034246,5]
[362006977,1747933879401,-420.0,0.00034246,5]
[362006978,1747933879411,-420.0,0.00034246,5]
[362006979,1747933879420,-420.0,0.00034246,5]
[362006980,1747933879429,-468.75,0.00034246,5]
[362006981,1747933879439,-420.0,0.00034246,5]
[362006982,1747933879448,-662.62,0.00034246,5]
[362006983,1747933879458,-420.0,0.00034246,5]
[362006984,1747933879467,-420.0,0.00034246,5]
[362006985,1747933879478,-628.66,0.00034246,5]
[362006986,1747933879488,-420.0,0.00034246,5]
[362006987,1747933879498,-420.0,0.00034246,5]
[362006988,1747933879508,-420.0,0.00034246,5]
[362006989,1747933879518,-420.0,0.00034246,5]
[362006990,1747933879527,-420.0,0.00034246,5]
[362006991,1747933879538,-510.99,0.00034246,5]
[362006992,1747933879548,-420.0,0.00034246,5]
[362006993,1747933879558,-642.96,0.00034246,5]
[362006994,1747933879568,-442.25,0.00034246,5]
[362006995,1747933879578,-420.0,0.00034246,5]
[362006996,1747933879587,-420.0,0.00034246,5]
[362006997,1747933879598,-420.0,0.00034246,5]
[362006998,1747933879607,-420.0,0.00034246,5]
[362006999,1747933879617,-420.0,0.00034246,5]
[362007000,1747933879627,-469.92,0.00034246,5]
[362007001,1747933879636,-867.63,0.00034246,5]
[362007002,1747933879645,-420.0,0.00034246,5]
[362007003,1747933879655,-589.11,0.00034246,5]
[362007004,1747933879664,-420.0,0.00034246,5]
[362007005,1747933879674,-420.0,0.00034246,5]
[362007006,1747933879683,-420.0,0.00034246,5]
[362007007,1747933879693,-420.0,0.00034246,5]
[362007008,1747933879702,-420.0,0.00034246,5]
[362007009,1747933879712,-466.21,0.00034246,5]
[362007010,1747933879721,-420.0,0.00034246,5]
[362007011,1747933879730,-420.0,0.00034246,5]
[362007012,1747933879741,-420.0,0.00034246,5]
[362007013,1747933879754,-490.3,0.00034246,5]
[362007014,1747933879763,-420.0,0.00034246,5]
[362007015,1747933879773,-420.0,0.00034246,5]
[362007016,1747933879783,-454.28,0.00034246,5]
[362007017,1747933879793,-464.75,0.00034246,5]
[362007018,1747933879803,-420.0,0.00034246,5]
[362007019,1747933879812,-543.11,0.00034246,5]
[362007020,1747933879824,-420.0,0.00034246,5]
[362007021,1747933879834,-420.0,0.00034246,5]
[362007022,1747933879843,-510.32,0.00034246,5]
[362007023,1747933879852,-561.89,0.00034246,5]
[362007024,1747933879861,-420.0,0.00034246,5]
[362007025,1747933879870,-482.92,0.00034246,5]
[362007026,1747933879880,-640.96,0.00034246,5]
[362007027,1747933879889,-628.61,0.00034246,5]
[362007028,1747933879899,-676.98,0.00034246,5]
[362007029,1747933879908,-420.0,0.00034246,5]
[362007030,1747933879917,-508.22,0.00034246,5]
[362007031,1747933879926,-420.0,0.00034246,5]
[362007032,1747933879935,-420.0,0.00034246,5]
[362007033,1747933879944,-428.04,0.00034246,5]
[362007034,1747933879953,-438.13,0.00034246,5]
[362007035,1747933879962,-420.0,0.00034246,5]
[362007036,1747933879973,-928.4,0.00034246,5]
[362007037,1747933879982,-485.06,0.00034246,5]
[362007038,1747933879991,-559.16,0.00034246,5]
[362007039,1747933880001,-851.37,0.00034246,5]
[362007040,1747933880011,-420.0,0.00034246,5]
[362007041,1747933880020,-455.05,0.00034246,5]
[362007042,1747933880029,-281.8,0.00034246,5]
[362007043,1747933880039,-451.54,0.00034246,5]
[362007044,1747933880048,-488.65,0.00034246,5]
[362007045,1747933880057,-420.0,0.00034246,5]
[362007046,1747933880067,-420.0,0.00034246,5]
[362007047,1747933880076,-420.0,0.00034246,5]
[362007048,1747933880085,-439.74,0.00034246,5]
[362007049,1747933880095,-420.0,0.00034246,5]
[362007050,1747933880104,-579.3,0.00034246,5]
[362007051,1747933880113,-420.0,0.00034246,5]
[362007052,1747933880123,-456.47,0.00034246,5]
[362007053,1747933880132,-1187.49,0.00034246,5]
[362007054,1747933880142,-585.77,0.00034246,5]
[362007055,1747933880151,-485.73,0.00034246,5]
[362007056,1747933880159,-561.75115174,0.00034246,5]
[362007057,1747933880168,-420.0,0.00034246,5]
[362007058,1747933880176,-688.23,0.00034246,5]
[362007059,1747933880184,-420.0,0.00034246,5]
[362007060,1747933880193,-637.3,0.00034246,5]
[362007061,1747933880201,-420.0,0.00034246,5]
[362007062,1747933880209,-473.24,0.00034246,5]
[362007063,1747933880219,-535.16,0.00034246,5]
[362007064,1747933880228,-420.0,0.00034246,5]
[362007065,1747933880238,-420.0,0.00034246,5]
[362007066,1747933880247,-420.0,0.00034246,5]
[362007067,1747933880257,-420.0,0.00034246,5]
[362007068,1747933880266,-420.0,0.00034246,5]
[362007069,1747933880275,-420.0,0.00034246,5]
[362007070,1747933880284,-420.0,0.00034246,5]
[362007071,1747933880295,-420.0,0.00034246,5]
[362007072,1747933880303,-1350.67,0.00034246,5]
[362007073,1747933880313,-420.0,0.00034246,5]
[362007074,1747933880323,-420.0,0.00034246,5]
[362007075,1747933880332,-420.0,0.00034246,5]
[362007076,1747933880342,-501.6,0.00034246,5]
[362007077,1747933880351,-607.22,0.00034246,5]
[362007078,1747933880360,-420.0,0.00034246,5]
[362007079,1747933880370,-420.0,0.00034246,5]
[362007080,1747933880379,-470.61,0.00034246,5]
[362007081,1747933880389,-566.25,0.00034246,5]
[362007082,1747933880398,-420.0,0.00034246,5]
[362007083,1747933880408,-711.61,0.00034246,5]
[362007084,1747933880417,-475.69,0.00034246,5]
[362007085,1747933880426,-420.0,0.00034246,5]
[362007086,1747933880436,-454.53,0.00034246,5]
[362007087,1747933880445,-420.0,0.00034246,5]
[362007088,1747933880454,-420.0,0.00034246,5]
[362007089,1747933880464,-420.0,0.00034246,5]
[362007090,1747933880473,-420.0,0.00034246,5]
[362007091,1747933880482,-545.9,0.00034246,5]
[362007092,1747933880492,-420.0,0.00034246,5]
[362007093,1747933880502,-420.0,0.00034246,5]
[362007094,1747933880511,-1563.4,0.00034246,5]
[362007095,1747933880520,-589.57,0.00034246,5]
[362007096,1747933880529,-420.0,0.00034246,5]
[362007097,1747933880539,-481.76,0.00034246,5]
[362007098,1747933880548,-375.64418084,0.00034246,5]
[362007099,1747933880557,-420.0,0.00034246,10]
[362007100,1747933880567,-420.0,0.00034246,5]
[362007101,1747933880576,-586.37,0.00034246,5]
[362007102,1747933880585,-559.24,0.00034246,5]
[362007103,1747933880595,-420.0,0.00034246,5]
[362007104,1747933880604,-336.5517256,0.00034246,5]
[362007105,1747933880614,-1122.81,0.00034246,5]
[362007106,1747933880623,-420.0,0.00034246,5]
[362007107,1747933880632,-420.0,0.00034246,5]
[362007108,1747933880642,-420.0,0.00034246,5]
[362007109,1747933880652,-420.0,0.00034246,5]
[362007110,1747933880661,-727.36,0.00034246,5]
[362007111,1747933880670,-577.39,0.00034246,5]
[362007112,1747933880680,-457.93362677,0.00034246,5]
[362007113,1747933880689,-644.15,0.00034246,5]
[362007114,1747933880698,-300.0,0.00034246,5]
[362007115,1747933880708,-572.15,0.00034246,5]
[362007116,1747933880717,-532.67,0.00034246,5]
[362007117,1747933880726,-493.12,0.00034246,5]
[362007118,1747933880736,-459.75,0.00034246,5]
[362007119,1747933880748,-843.51,0.00034246,5]
[362007120,1747933880757,-420.0,0.00034246,5]
[362007121,1747933880766,-420.0,0.00034246,5]
[362007122,1747933880776,-420.0,0.00034246,5]
[362007123,1747933880786,-593.15,0.00034246,5]
[362007124,1747933880796,-420.0,0.00034246,5]
[362007125,1747933880805,-533.84,0.00034246,5]
[362007126,1747933880814,-797.22,0.00034246,5]
[362007127,1747933880826,-529.35,0.00034246,5]
[362007128,1747933880835,-592.14,0.00034246,5]
[362007129,1747933880845,-420.0,0.00034246,5]
[362007130,1747933880855,-420.0,0.00034246,5]
[362007131,1747933880864,-682.38,0.00034246,5]
[362007132,1747933880873,-920.85,0.00034246,5]
[362007133,1747933880883,-603.95,0.00034246,5]
[362007134,1747933880892,-420.0,0.00034246,5]
[362007135,1747933880901,-420.0,0.00034246,5]
[362007136,1747933880911,-420.0,0.00034246,5]
[362007137,1747933880919,-438.47,0.00034246,5]
[362007138,1747933880929,-420.0,0.00034246,5]
[362007139,1747933880938,-420.0,0.00034246,5]
[362007140,1747933880947,-779.53,0.00034246,5]
[362007141,1747933880956,-420.0,0.00034246,5]
[362007142,1747933880965,-420.0,0.00034246,5]
[362007143,1747933880974,-482.75,0.00034246,5]
[362007144,1747933880983,-477.74,0.00034246,5]
[362007145,1747933880992,-420.0,0.00034246,5]
[362007146,1747933881002,-420.0,0.00034246,5]
[362007147,1747933881012,-430.85,0.00034246,5]
[362007148,1747933881021,-420.0,0.00034246,5]
[362007149,1747933881030,-420.0,0.00034246,5]
[362007150,1747933881040,-420.0,0.00034246,5]
[362007151,1747933881050,-420.0,0.00034246,5]
[362007152,1747933881059,-420.0,0.00034246,5]
[362007153,1747933881069,-669.62,0.00034246,5]
[362007154,1747933881078,-420.0,0.00034246,5]
[362007155,1747933881088,-420.0,0.00034246,5]
[362007156,1747933881098,-420.0,0.00034246,5]
[362007157,1747933881107,-508.77,0.00034246,5]
[362007158,1747933881117,-420.0,0.00034246,5]
[362007159,1747933881126,-420.0,0.00034246,5]
[362007160,1747933881140,-420.0,0.00034246,5]
[362007161,1747933881149,-495.88,0.00034246,5]
[362007162,1747933881158,-420.0,0.00034246,5]
[362007163,1747933881167,-459.41,0.00034246,5]
[362007164,1747933881177,-420.0,0.00034246,5]
[362007165,1747933881186,-420.0,0.00034246,5]
[362007166,1747933881195,-539.96,0.00034246,5]
[362007167,1747933881205,-420.0,0.00034246,5]
[362007168,1747933881214,-256.41010689,0.00034246,5]
[362007169,1747933881223,-508.200311,0.00034246,5]
[362007170,1747933881232,-525.35,0.00034246,5]
[362007171,1747933881242,-510.6,0.00034246,5]
[362007172,1747933881252,-420.0,0.00034246,5]
[362007173,1747933881261,-420.0,0.00034246,5]
[362007174,1747933881270,-420.0,0.00034246,5]
[362007175,1747933881280,-420.0,0.00034246,5]
[362007176,1747933881289,-442.76,0.00034246,5]
[362007177,1747933881299,-420.0,0.00034246,5]
[362007178,1747933881308,-420.0,0.00034246,5]
[362007179,1747933881317,-494.37,0.00034246,5]
[362007180,1747933881326,-420.0,0.00034246,5]
[362007181,1747933881335,-420.0,0.00034246,5]
[362007182,1747933881344,-420.0,0.00034246,5]
[362007183,1747933881354,-420.0,0.00034246,5]
[362007184,1747933881363,-809.26,0.00034246,5]
[362007185,1747933881372,-420.0,0.00034246,5]
[362007186,1747933881382,-420.0,0.00034246,5]
[362007187,1747933881391,-420.0,0.00034246,5]
[362007188,1747933881401,-420.0,0.00034246,5]
[362007189,1747933881411,-420.0,0.00034246,5]
[362007190,1747933881422,-769.8,0.00034246,5]
[362007191,1747933881432,-420.0,0.00034246,5]
[362007192,1747933881442,-977.72,0.00034246,5]
[362007193,1747933881451,-460.19,0.00034246,5]
[362007194,1747933881461,-466.15,0.00034246,5]
[362007195,1747933881471,-845.24,0.00034246,5]
[362007196,1747933881480,-734.6,0.00034246,5]
[362007197,1747933881489,-420.0,0.00034246,5]
[362007198,1747933881499,-638.11,0.00034246,5]
[362007199,1747933881509,-508.6,0.00034246,5]
[362007200,1747933881530,-465.09,0.00034246,5]
[362007201,1747933881553,-1581.76,0.00034246,5]
[362007202,1747933881562,-437.18,0.00034246,5]
[362007203,1747933881572,-420.0,0.00034246,5]
[362007204,1747933881581,-420.0,0.00034246,5]
[362007205,1747933881591,-870.21,0.00034246,5]
[362007206,1747933881600,-789.17,0.00034246,5]
[362007207,1747933881611,-420.0,0.00034246,5]
[362007208,1747933881620,-420.0,0.00034246,5]
[362007209,1747933881629,-649.66,0.00034246,5]
[362007210,1747933881639,-595.12,0.00034246,5]
[362007211,1747933881649,-420.0,0.00034246,5]
[362007212,1747933881659,-509.16,0.00034246,5]
[362007213,1747933881670,-420.0,0.00034246,5]
[362007214,1747933881680,-433.89,0.00034246,5]
[362007215,1747933881690,-504.19564644,0.00034246,5]
[362007216,1747933881700,-420.0,0.00034246,5]
[362007217,1747933881710,-420.0,0.00034246,5]
[362007218,1747933881719,-420.0,0.00034246,5]
[362007219,1747933881729,-498.61,0.00034246,5]
[362007220,1747933881739,-420.0,0.00034246,5]
[362007221,1747933881753,-580.11,0.00034246,5]
[362007222,1747933881763,-573.53,0.00034246,5]
[362007223,1747933881773,-310.10130027,0.00034246,5]
[362007224,1747933881784,-420.0,0.00034246,5]
[362007225,1747933881794,-420.0,0.00034246,5]
[362007226,1747933881803,-608.49,0.00034246,5]
[362007227,1747933881815,-420.0,0.00034246,5]
[362007228,1747933881825,-425.68,0.00034246,5]
[362007229,1747933881834,-165.58054347,0.00034246,5]
[362007230,1747933881844,-481.58,0.00034246,5]
[362007231,1747933881853,-730.27,0.00034246,5]
[362007232,1747933881863,-1071.99,0.00034246,5]
[362007233,1747933881874,-420.0,0.00034246,5]
[362007234,1747933881885,-420.0,0.00034246,5]
[362007235,1747933881894,-420.0,0.00034246,5]
[362007236,1747933881904,-420.0,0.00034246,5]